[Event "Titled Tuesday Blitz May 4 2021"]
[White "Sargissyan, Sargis"]
[Black "Golsta, Madara"]
[WhiteFideId "13303210"]
[BlackFideId "11607386"]
[WhiteElo "2174"]
[BlackElo "1880"]
[Result "0-1"]
[Round "03"]
[TimeControl "180+1"]
[Date "2021.05.04"]
[WhiteClock "0:00:01"]
[BlackClock "0:00:09"]

1. e4 {[%clk 0:03:00]}  c5 {[%clk 0:02:59]} 2. Nf3 {[%clk 0:03:00]}  d6 {[%clk 0:02:59]} 3. d4 {[%clk 0:03:00]}  cxd4 {[%clk 0:02:59]} 4. Nxd4 {[%clk 0:03:01]}  Nf6 {[%clk 0:02:59]} 5. Nc3 {[%clk 0:03:01]}  g6 {[%clk 0:02:59]} 6. Be3 {[%clk 0:03:00]}  Bg7 {[%clk 0:02:59]} 7. f3 {[%clk 0:02:59]}  Nc6 {[%clk 0:02:59]} 8. Qd2 {[%clk 0:02:58]}  O-O {[%clk 0:02:58]} 9. O-O-O {[%clk 0:02:57]}  d5 {[%clk 0:02:57]} 10. exd5 {[%clk 0:02:50]}  Nxd5 {[%clk 0:02:56]} 11. Nxc6 {[%clk 0:02:37]}  bxc6 {[%clk 0:02:55]} 12. Bd4 {[%clk 0:02:36]}  Nxc3 {[%clk 0:02:51]} 13. Qxc3 {[%clk 0:02:30]}  Bh6+ {[%clk 0:02:48]} 14. Kb1 {[%clk 0:02:20]}  e5 {[%clk 0:02:40]} 15. Bc4 {[%clk 0:02:07]}  exd4 {[%clk 0:02:38]} 16. Qb3 {[%clk 0:02:06]}  Bf5 {[%clk 0:02:26]} 17. g4 {[%clk 0:02:00]}  Rb8 {[%clk 0:02:25]} 18. Qa4 {[%clk 0:01:51]}  Qb6 {[%clk 0:02:18]} 19. b3 {[%clk 0:01:46]}  Bd7 {[%clk 0:02:12]} 20. Qa3 {[%clk 0:01:45]}  Qb4 {[%clk 0:01:49]} 21. Qb2 {[%clk 0:01:37]}  Bg7 {[%clk 0:01:43]} 22. Rd3 {[%clk 0:01:25]}  c5 {[%clk 0:01:24]} 23. h4 {[%clk 0:01:09]}  Qxc4 {[%clk 0:01:08]} 24. bxc4 {[%clk 0:01:08]}  Rxb2+ {[%clk 0:01:08]} 25. Kxb2 {[%clk 0:01:09]}  Be6 {[%clk 0:01:08]} 26. Ra3 {[%clk 0:01:03]}  Bxc4 {[%clk 0:01:07]} 27. Rxa7 {[%clk 0:01:00]}  Rb8+ {[%clk 0:01:04]} 28. Kc1 {[%clk 0:00:56]}  Bd5 {[%clk 0:01:02]} 29. Rf1 {[%clk 0:00:51]}  Bf8 {[%clk 0:00:42]} 30. Ra5 {[%clk 0:00:46]}  Bc4 {[%clk 0:00:39]} 31. Re1 {[%clk 0:00:44]}  Bd6 {[%clk 0:00:39]} 32. c3 {[%clk 0:00:31]}  d3 {[%clk 0:00:37]} 33. Re4 {[%clk 0:00:19]}  Bd5 {[%clk 0:00:31]} 34. Rea4 {[%clk 0:00:17]}  Bc6 {[%clk 0:00:25]} 35. Rc4 {[%clk 0:00:13]}  Bxf3 {[%clk 0:00:21]} 36. Kd2 {[%clk 0:00:13]}  Be2 {[%clk 0:00:19]} 37. Rca4 {[%clk 0:00:11]}  Rb2+ {[%clk 0:00:17]} 38. Ke3 {[%clk 0:00:11]}  Kg7 {[%clk 0:00:14]} 39. h5 {[%clk 0:00:09]}  Bf1 {[%clk 0:00:13]} 40. g5 {[%clk 0:00:08]}  gxh5 {[%clk 0:00:12]} 41. Ra6 {[%clk 0:00:03]}  Be5 {[%clk 0:00:10]} 42. Re4 {[%clk 0:00:01]}  Bxc3 {[%clk 0:00:10]} 43. Rc4 {[%clk 0:00:01]}  Bd4+ {[%clk 0:00:09]} 44. Ke4 {[%clk 0:00:01]}  d2 {[%clk 0:00:09]} 0-1


[Site "https://www.chess.com"]

[Event "Titled Tuesday Blitz May 4 2021"]
[White "Sarkar, Justin"]
[Black "Markidis, Konstantinos"]
[WhiteFideId "2010011"]
[BlackFideId "4203500"]
[WhiteElo "2140"]
[BlackElo "2304"]
[Result "0-1"]
[Round "03"]
[TimeControl "180+1"]
[Date "2021.05.04"]
[WhiteClock "0:00:08"]
[BlackClock "0:01:29"]

1. e4 {[%clk 0:02:56]}  e6 {[%clk 0:03:00]} 2. d4 {[%clk 0:02:50]}  d5 {[%clk 0:03:00]} 3. e5 {[%clk 0:02:50]}  c5 {[%clk 0:03:00]} 4. c3 {[%clk 0:02:49]}  Nc6 {[%clk 0:03:00]} 5. Be3 {[%clk 0:02:47]}  Nh6 {[%clk 0:02:56]} 6. Bd3 {[%clk 0:02:42]}  Qb6 {[%clk 0:02:37]} 7. Qd2 {[%clk 0:02:30]}  Ng4 {[%clk 0:02:35]} 8. Nf3 {[%clk 0:02:21]}  Nxe3 {[%clk 0:02:34]} 9. fxe3 {[%clk 0:02:21]}  Be7 {[%clk 0:02:27]} 10. O-O {[%clk 0:02:20]}  O-O {[%clk 0:02:27]} 11. Qc2 {[%clk 0:02:10]}  h6 {[%clk 0:02:23]} 12. Nbd2 {[%clk 0:02:04]}  Bd7 {[%clk 0:02:07]} 13. a3 {[%clk 0:01:45]}  Rac8 {[%clk 0:02:06]} 14. Rf2 {[%clk 0:01:22]}  f5 {[%clk 0:01:55]} 15. exf6 {[%clk 0:00:41]}  Bxf6 {[%clk 0:01:54]} 16. Raf1 {[%clk 0:00:41]}  cxd4 {[%clk 0:01:39]} 17. exd4 {[%clk 0:00:39]}  Nxd4 {[%clk 0:01:31]} 18. Nxd4 {[%clk 0:00:09]}  Bxd4 {[%clk 0:01:30]} 19. cxd4 {[%clk 0:00:08]}  Rxf2 {[%clk 0:01:29]} 0-1


[Site "https://www.chess.com"]

[Event "Titled Tuesday Blitz May 4 2021"]
[White "Schmidt, Harald"]
[Black "Maranhao,Jose Renato Ruiz"]
[WhiteFideId "4648358"]
[BlackFideId "2135175"]
[WhiteElo "2278"]
[BlackElo "1970"]
[Result "1-0"]
[Round "03"]
[TimeControl "180+1"]
[Date "2021.05.04"]
[WhiteClock "0:00:21"]
[BlackClock "0:00:14"]

1. e4 {[%clk 0:02:59]}  c6 {[%clk 0:02:59]} 2. d4 {[%clk 0:02:57]}  d5 {[%clk 0:03:00]} 3. e5 {[%clk 0:02:56]}  Bf5 {[%clk 0:02:59]} 4. h4 {[%clk 0:02:54]}  h6 {[%clk 0:02:59]} 5. c4 {[%clk 0:02:53]}  e6 {[%clk 0:02:58]} 6. Nc3 {[%clk 0:02:49]}  Nd7 {[%clk 0:02:58]} 7. g4 {[%clk 0:02:48]}  Bh7 {[%clk 0:02:56]} 8. Nge2 {[%clk 0:02:36]}  Be7 {[%clk 0:02:53]} 9. h5 {[%clk 0:02:33]}  Bg5 {[%clk 0:02:42]} 10. Nf4 {[%clk 0:02:05]}  Qb6 {[%clk 0:02:28]} 11. c5 {[%clk 0:01:55]}  Qb4 {[%clk 0:02:27]} 12. a3 {[%clk 0:01:51]}  Qa5 {[%clk 0:02:24]} 13. b4 {[%clk 0:01:51]}  Qc7 {[%clk 0:02:23]} 14. Bd3 {[%clk 0:01:42]}  Nxe5 {[%clk 0:02:16]} 15. Bxh7 {[%clk 0:01:23]}  Rxh7 {[%clk 0:02:17]} 16. Nxe6 {[%clk 0:01:09]}  fxe6 {[%clk 0:02:13]} 17. Bxg5 {[%clk 0:01:09]}  Nc4 {[%clk 0:01:48]} 18. Bh4 {[%clk 0:01:03]}  Nf6 {[%clk 0:01:37]} 19. Bg3 {[%clk 0:01:00]}  Qd7 {[%clk 0:01:23]} 20. O-O {[%clk 0:01:00]}  O-O-O {[%clk 0:01:18]} 21. a4 {[%clk 0:00:58]}  g6 {[%clk 0:01:18]} 22. hxg6 {[%clk 0:00:56]}  Rg7 {[%clk 0:01:17]} 23. g5 {[%clk 0:00:44]}  hxg5 {[%clk 0:01:12]} 24. b5 {[%clk 0:00:44]}  Rxg6 {[%clk 0:01:05]} 25. bxc6 {[%clk 0:00:43]}  Qxc6 {[%clk 0:01:02]} 26. Nb5 {[%clk 0:00:41]}  Qa6 {[%clk 0:00:47]} 27. Re1 {[%clk 0:00:37]}  Ne4 {[%clk 0:00:46]} 28. Rxe4 {[%clk 0:00:32]}  dxe4 {[%clk 0:00:45]} 29. Qe2 {[%clk 0:00:32]}  Rxd4 {[%clk 0:00:42]} 30. Nxd4 {[%clk 0:00:30]}  e5 {[%clk 0:00:39]} 31. Nb5 {[%clk 0:00:28]}  Na5 {[%clk 0:00:23]} 32. Qxe4 {[%clk 0:00:27]}  Nb3 {[%clk 0:00:19]} 33. Rd1 {[%clk 0:00:22]}  Rh6 {[%clk 0:00:14]} 34. Qxe5 {[%clk 0:00:21]} 1-0


[Site "https://www.chess.com"]

[Event "Titled Tuesday Blitz May 4 2021"]
[White "Sellitti, Federico"]
[Black "TigrVShlyape"]
[WhiteFideId "821829"]
[WhiteElo "2605"]
[BlackElo "2827"]
[Result "0-1"]
[Round "03"]
[TimeControl "180+1"]
[Date "2021.05.04"]
[WhiteClock "0:00:22"]
[BlackClock "0:00:45"]

1. e4 {[%clk 0:03:00]}  e5 {[%clk 0:02:59]} 2. Nc3 {[%clk 0:03:00]}  Bc5 {[%clk 0:02:52]} 3. f4 {[%clk 0:03:00]}  d6 {[%clk 0:02:47]} 4. Nf3 {[%clk 0:03:00]}  Nf6 {[%clk 0:02:28]} 5. Bc4 {[%clk 0:03:00]}  exf4 {[%clk 0:02:24]} 6. d4 {[%clk 0:02:59]}  Bb4 {[%clk 0:02:23]} 7. O-O {[%clk 0:02:50]}  O-O {[%clk 0:02:21]} 8. Bxf4 {[%clk 0:02:49]}  Bxc3 {[%clk 0:02:20]} 9. bxc3 {[%clk 0:02:49]}  Nxe4 {[%clk 0:02:18]} 10. Qd3 {[%clk 0:02:50]}  d5 {[%clk 0:02:17]} 11. Bb3 {[%clk 0:02:35]}  c6 {[%clk 0:02:16]} 12. Ne5 {[%clk 0:02:32]}  Be6 {[%clk 0:02:11]} 13. Rae1 {[%clk 0:02:27]}  Nd7 {[%clk 0:02:08]} 14. c4 {[%clk 0:02:21]}  Nxe5 {[%clk 0:02:03]} 15. Bxe5 {[%clk 0:02:09]}  dxc4 {[%clk 0:02:00]} 16. Qxe4 {[%clk 0:01:54]}  cxb3 {[%clk 0:01:59]} 17. axb3 {[%clk 0:01:55]}  Bd5 {[%clk 0:01:53]} 18. Qg4 {[%clk 0:01:45]}  f6 {[%clk 0:01:52]} 19. Bf4 {[%clk 0:01:45]}  b5 {[%clk 0:01:47]} 20. Re3 {[%clk 0:01:45]}  Rf7 {[%clk 0:01:45]} 21. Rfe1 {[%clk 0:01:44]}  Qd7 {[%clk 0:01:41]} 22. Qg3 {[%clk 0:01:27]}  Rd8 {[%clk 0:01:27]} 23. Bc7 {[%clk 0:01:14]}  Rc8 {[%clk 0:01:13]} 24. Bd6 {[%clk 0:01:13]}  h5 {[%clk 0:01:11]} 25. h3 {[%clk 0:00:49]}  Rd8 {[%clk 0:01:04]} 26. Bc7 {[%clk 0:00:49]}  Qxc7 {[%clk 0:00:59]} 27. Re8+ {[%clk 0:00:50]}  Rxe8 {[%clk 0:00:58]} 28. Rxe8+ {[%clk 0:00:50]}  Kh7 {[%clk 0:00:58]} 29. Qh4 {[%clk 0:00:44]}  g6 {[%clk 0:00:56]} 30. Qe1 {[%clk 0:00:41]}  Qf4 {[%clk 0:00:52]} 31. Rd8 {[%clk 0:00:27]}  Qxd4+ {[%clk 0:00:46]} 32. Kf1 {[%clk 0:00:27]}  Qe4 {[%clk 0:00:45]} 33. Qf2 {[%clk 0:00:22]}  Qf5 {[%clk 0:00:45]} 0-1


[Site "https://www.chess.com"]

[Event "Titled Tuesday Blitz May 4 2021"]
[White "Senthil Maran K"]
[Black "Qi, Henry"]
[WhiteFideId "25035681"]
[BlackFideId "2073188"]
[WhiteElo "2194"]
[BlackElo "2138"]
[Result "1-0"]
[Round "03"]
[TimeControl "180+1"]
[Date "2021.05.04"]
[WhiteClock "0:00:29"]
[BlackClock "0:00:11"]

1. d4 {[%clk 0:03:00]}  g6 {[%clk 0:02:59]} 2. e4 {[%clk 0:02:38]}  d6 {[%clk 0:02:58]} 3. Nc3 {[%clk 0:02:38]}  Nf6 {[%clk 0:02:58]} 4. f4 {[%clk 0:02:37]}  Bg7 {[%clk 0:02:57]} 5. e5 {[%clk 0:02:37]}  Nfd7 {[%clk 0:02:48]} 6. Nf3 {[%clk 0:02:30]}  c5 {[%clk 0:02:47]} 7. Be3 {[%clk 0:02:11]}  cxd4 {[%clk 0:02:45]} 8. Bxd4 {[%clk 0:02:12]}  Nc6 {[%clk 0:02:45]} 9. e6 {[%clk 0:02:09]}  Nf6 {[%clk 0:02:39]} 10. exf7+ {[%clk 0:02:06]}  Kf8 {[%clk 0:02:14]} 11. Bc4 {[%clk 0:01:53]}  Bg4 {[%clk 0:02:02]} 12. O-O {[%clk 0:01:48]}  Rc8 {[%clk 0:01:17]} 13. Ng5 {[%clk 0:01:36]}  Bxd1 {[%clk 0:00:52]} 14. Ne6+ {[%clk 0:01:33]}  Kxf7 {[%clk 0:00:53]} 15. Nxd8+ {[%clk 0:01:33]}  Ke8 {[%clk 0:00:53]} 16. Nxc6 {[%clk 0:01:32]}  Rxc6 {[%clk 0:00:53]} 17. Bb5 {[%clk 0:01:30]}  Bxc2 {[%clk 0:00:43]} 18. Rac1 {[%clk 0:01:29]}  Bf5 {[%clk 0:00:37]} 19. Nd5 {[%clk 0:01:25]}  Kd7 {[%clk 0:00:28]} 20. Bxc6+ {[%clk 0:01:20]}  bxc6 {[%clk 0:00:28]} 21. Nxf6+ {[%clk 0:01:19]}  exf6 {[%clk 0:00:25]} 22. b4 {[%clk 0:01:11]}  Rb8 {[%clk 0:00:25]} 23. a3 {[%clk 0:01:11]}  a6 {[%clk 0:00:24]} 24. Rfd1 {[%clk 0:01:10]}  Bh6 {[%clk 0:00:21]} 25. g3 {[%clk 0:01:09]}  Bg4 {[%clk 0:00:19]} 26. Re1 {[%clk 0:01:08]}  f5 {[%clk 0:00:19]} 27. Kg2 {[%clk 0:01:06]}  Bf8 {[%clk 0:00:17]} 28. h3 {[%clk 0:01:05]}  Bh5 {[%clk 0:00:17]} 29. Kf2 {[%clk 0:01:05]}  h6 {[%clk 0:00:16]} 30. Rg1 {[%clk 0:01:00]}  g5 {[%clk 0:00:16]} 31. g4 {[%clk 0:00:58]}  Bg6 {[%clk 0:00:15]} 32. fxg5 {[%clk 0:00:55]}  hxg5 {[%clk 0:00:15]} 33. gxf5 {[%clk 0:00:55]}  Bxf5 {[%clk 0:00:16]} 34. Rxg5 {[%clk 0:00:55]}  Bxh3 {[%clk 0:00:16]} 35. Rh1 {[%clk 0:00:54]}  Be6 {[%clk 0:00:15]} 36. Rh7+ {[%clk 0:00:53]}  Kc8 {[%clk 0:00:14]} 37. Rh8 {[%clk 0:00:52]}  Kb7 {[%clk 0:00:13]} 38. Bg7 {[%clk 0:00:51]}  Be7 {[%clk 0:00:11]} 39. Rxb8+ {[%clk 0:00:48]}  Kxb8 {[%clk 0:00:12]} 40. Rg6 {[%clk 0:00:45]}  Bd5 {[%clk 0:00:11]} 41. Bf6 {[%clk 0:00:43]}  Bf8 {[%clk 0:00:10]} 42. Ke3 {[%clk 0:00:35]}  Kb7 {[%clk 0:00:11]} 43. Kd4 {[%clk 0:00:33]}  Kb6 {[%clk 0:00:11]} 44. a4 {[%clk 0:00:32]}  c5+ {[%clk 0:00:11]} 45. Kxd5 {[%clk 0:00:32]}  cxb4 {[%clk 0:00:11]} 46. Bd8+ {[%clk 0:00:31]}  Kb7 {[%clk 0:00:11]} 47. Rf6 {[%clk 0:00:29]}  Bg7 {[%clk 0:00:11]} 48. Rf7+ {[%clk 0:00:29]} 1-0


[Site "https://www.chess.com"]

[Event "Titled Tuesday Blitz May 4 2021"]
[White "Sergey85Rodchenkov"]
[Black "tylityli"]
[WhiteElo "2542"]
[BlackElo "2322"]
[Result "1-0"]
[Round "03"]
[TimeControl "180+1"]
[Date "2021.05.04"]
[WhiteClock "0:00:08"]
[BlackClock "0:00:07"]

1. Nf3 {[%clk 0:03:00]}  Nf6 {[%clk 0:02:58]} 2. c4 {[%clk 0:03:00]}  c5 {[%clk 0:02:58]} 3. b3 {[%clk 0:02:59]}  d5 {[%clk 0:02:58]} 4. cxd5 {[%clk 0:02:58]}  Nxd5 {[%clk 0:02:59]} 5. Bb2 {[%clk 0:02:58]}  Nc6 {[%clk 0:02:58]} 6. g3 {[%clk 0:02:57]}  Bg4 {[%clk 0:02:55]} 7. Bg2 {[%clk 0:02:55]}  e6 {[%clk 0:02:54]} 8. O-O {[%clk 0:02:53]}  Be7 {[%clk 0:02:53]} 9. d4 {[%clk 0:02:48]}  O-O {[%clk 0:02:51]} 10. Nc3 {[%clk 0:02:30]}  Bxf3 {[%clk 0:02:44]} 11. Bxf3 {[%clk 0:02:28]}  Nxd4 {[%clk 0:02:42]} 12. Bg2 {[%clk 0:02:25]}  Nxc3 {[%clk 0:02:34]} 13. Bxc3 {[%clk 0:02:25]}  Bf6 {[%clk 0:02:34]} 14. Rc1 {[%clk 0:02:24]}  Qb6 {[%clk 0:02:29]} 15. e3 {[%clk 0:02:21]}  Nf5 {[%clk 0:02:15]} 16. Bxf6 {[%clk 0:02:19]}  gxf6 {[%clk 0:02:16]} 17. Qg4+ {[%clk 0:01:53]}  Kh8 {[%clk 0:02:15]} 18. Rfd1 {[%clk 0:01:50]}  Rad8 {[%clk 0:02:11]} 19. Qf4 {[%clk 0:01:43]}  Kg7 {[%clk 0:02:02]} 20. h4 {[%clk 0:01:39]}  Rxd1+ {[%clk 0:01:47]} 21. Rxd1 {[%clk 0:01:38]}  Rd8 {[%clk 0:01:47]} 22. Rxd8 {[%clk 0:01:35]}  Qxd8 {[%clk 0:01:48]} 23. Bxb7 {[%clk 0:01:32]}  Qd2 {[%clk 0:01:31]} 24. Be4 {[%clk 0:01:30]}  Nd6 {[%clk 0:01:23]} 25. Bf3 {[%clk 0:01:12]}  Nf5 {[%clk 0:01:15]} 26. h5 {[%clk 0:01:08]}  h6 {[%clk 0:01:11]} 27. Be4 {[%clk 0:00:58]}  Nd6 {[%clk 0:01:05]} 28. Bc6 {[%clk 0:00:41]}  Nf5 {[%clk 0:00:51]} 29. Qg4+ {[%clk 0:00:28]}  Kf8 {[%clk 0:00:50]} 30. Qc4 {[%clk 0:00:23]}  Qd6 {[%clk 0:00:41]} 31. Be4 {[%clk 0:00:22]}  Ne7 {[%clk 0:00:24]} 32. Kg2 {[%clk 0:00:20]}  Qe5 {[%clk 0:00:23]} 33. Bf3 {[%clk 0:00:19]}  f5 {[%clk 0:00:23]} 34. Qa6 {[%clk 0:00:19]}  Qc7 {[%clk 0:00:20]} 35. Qb5 {[%clk 0:00:17]}  Kg7 {[%clk 0:00:17]} 36. Qc4 {[%clk 0:00:14]}  Qe5 {[%clk 0:00:15]} 37. b4 {[%clk 0:00:11]}  cxb4 {[%clk 0:00:13]} 38. Qxb4 {[%clk 0:00:11]}  Nd5 {[%clk 0:00:13]} 39. Qb3 {[%clk 0:00:11]}  Nf6 {[%clk 0:00:12]} 40. a4 {[%clk 0:00:10]}  Qa1 {[%clk 0:00:11]} 41. Qc4 {[%clk 0:00:08]}  Qe5 {[%clk 0:00:08]} 42. Qb4 {[%clk 0:00:08]}  a5 {[%clk 0:00:07]} 43. Qb5 {[%clk 0:00:08]} 1-0


[Site "https://www.chess.com"]

[Event "Titled Tuesday Blitz May 4 2021"]
[White "Shahinyan, David"]
[Black "Trost, Edvin"]
[WhiteFideId "13304380"]
[BlackFideId "1729519"]
[WhiteElo "2372"]
[BlackElo "2028"]
[Result "0-1"]
[Round "03"]
[TimeControl "180+1"]
[Date "2021.05.04"]
[WhiteClock "0:00:03"]
[BlackClock "0:01:11"]

1. e4 {[%clk 0:03:00]}  g6 {[%clk 0:02:56]} 2. Nc3 {[%clk 0:02:54]}  Bg7 {[%clk 0:02:55]} 3. Bc4 {[%clk 0:02:51]}  d6 {[%clk 0:02:54]} 4. Qf3 {[%clk 0:02:48]}  Nf6 {[%clk 0:02:54]} 5. h4 {[%clk 0:02:46]}  Nc6 {[%clk 0:02:52]} 6. h5 {[%clk 0:02:44]}  Ne5 {[%clk 0:02:47]} 7. Qe2 {[%clk 0:02:39]}  Nxc4 {[%clk 0:02:47]} 8. Qxc4 {[%clk 0:02:38]}  Nxh5 {[%clk 0:02:47]} 9. d3 {[%clk 0:02:34]}  c6 {[%clk 0:02:45]} 10. Nf3 {[%clk 0:02:34]}  Nf6 {[%clk 0:02:43]} 11. Bh6 {[%clk 0:02:30]}  Bxh6 {[%clk 0:02:36]} 12. Rxh6 {[%clk 0:02:31]}  Qb6 {[%clk 0:02:34]} 13. Ng5 {[%clk 0:02:17]}  e6 {[%clk 0:02:28]} 14. Qb3 {[%clk 0:01:54]}  Ng4 {[%clk 0:02:20]} 15. Qxb6 {[%clk 0:01:47]}  axb6 {[%clk 0:02:21]} 16. Rxh7 {[%clk 0:01:45]}  Rxh7 {[%clk 0:02:21]} 17. Nxh7 {[%clk 0:01:46]}  Ke7 {[%clk 0:02:18]} 18. Ng5 {[%clk 0:01:44]}  e5 {[%clk 0:02:17]} 19. Ke2 {[%clk 0:01:43]}  Nf6 {[%clk 0:02:14]} 20. Rh1 {[%clk 0:01:41]}  b5 {[%clk 0:02:13]} 21. a3 {[%clk 0:01:41]}  Be6 {[%clk 0:02:11]} 22. g3 {[%clk 0:01:38]}  Bg4+ {[%clk 0:02:10]} 23. f3 {[%clk 0:01:38]}  Bd7 {[%clk 0:02:10]} 24. f4 {[%clk 0:01:33]}  Bg4+ {[%clk 0:02:09]} 25. Ke3 {[%clk 0:01:33]}  Nh5 {[%clk 0:02:08]} 26. Rg1 {[%clk 0:01:23]}  f6 {[%clk 0:02:05]} 27. Nf3 {[%clk 0:01:23]}  Rh8 {[%clk 0:01:54]} 28. Nh4 {[%clk 0:01:23]}  Nxf4 {[%clk 0:01:49]} 29. Kd2 {[%clk 0:00:47]}  Kf7 {[%clk 0:01:41]} 30. Nd1 {[%clk 0:00:35]}  Bxd1 {[%clk 0:01:40]} 31. Kxd1 {[%clk 0:00:36]}  Ne6 {[%clk 0:01:39]} 32. Rf1 {[%clk 0:00:32]}  Nd4 {[%clk 0:01:37]} 33. c3 {[%clk 0:00:31]}  Ne6 {[%clk 0:01:38]} 34. Ke2 {[%clk 0:00:29]}  d5 {[%clk 0:01:34]} 35. Ke3 {[%clk 0:00:28]}  Kg7 {[%clk 0:01:32]} 36. Ra1 {[%clk 0:00:18]}  Rd8 {[%clk 0:01:32]} 37. a4 {[%clk 0:00:18]}  dxe4 {[%clk 0:01:31]} 38. dxe4 {[%clk 0:00:18]}  bxa4 {[%clk 0:01:31]} 39. Rxa4 {[%clk 0:00:17]}  Rd3+ {[%clk 0:01:30]} 40. Kxd3 {[%clk 0:00:16]}  Nc5+ {[%clk 0:01:30]} 41. Kc4 {[%clk 0:00:16]}  Nxa4 {[%clk 0:01:31]} 42. b3 {[%clk 0:00:17]}  Nb2+ {[%clk 0:01:30]} 43. Kc5 {[%clk 0:00:17]}  Nd1 {[%clk 0:01:26]} 44. c4 {[%clk 0:00:17]}  Nc3 {[%clk 0:01:23]} 45. Kb6 {[%clk 0:00:15]}  Nxe4 {[%clk 0:01:23]} 46. b4 {[%clk 0:00:14]}  Nd6 {[%clk 0:01:16]} 47. c5 {[%clk 0:00:14]}  Nb5 {[%clk 0:01:16]} 48. Kxb7 {[%clk 0:00:14]}  Nd4 {[%clk 0:01:17]} 49. Kc7 {[%clk 0:00:04]}  f5 {[%clk 0:01:16]} 50. Kd6 {[%clk 0:00:04]}  Kf6 {[%clk 0:01:16]} 51. Ng2 {[%clk 0:00:05]}  g5 {[%clk 0:01:17]} 52. b5 {[%clk 0:00:02]}  cxb5 {[%clk 0:01:09]} 53. Kd5 {[%clk 0:00:03]}  b4 {[%clk 0:01:10]} 54. Kc4 {[%clk 0:00:03]}  f4 {[%clk 0:01:09]} 55. gxf4 {[%clk 0:00:02]}  gxf4 {[%clk 0:01:10]} 56. Nxf4 {[%clk 0:00:03]}  exf4 {[%clk 0:01:09]} 57. Kxd4 {[%clk 0:00:02]}  Ke7 {[%clk 0:01:09]} 58. Ke4 {[%clk 0:00:02]}  b3 {[%clk 0:01:09]} 59. Kxf4 {[%clk 0:00:02]}  b2 {[%clk 0:01:10]} 60. Ke5 {[%clk 0:00:03]}  b1=Q {[%clk 0:01:11]} 0-1


[Site "https://www.chess.com"]

[Event "Titled Tuesday Blitz May 4 2021"]
[White "Shapkin, Anatoliy"]
[Black "Vovk, Orest"]
[WhiteFideId "34108332"]
[BlackFideId "14113490"]
[WhiteElo "2221"]
[BlackElo "2203"]
[Result "0-1"]
[Round "03"]
[TimeControl "180+1"]
[Date "2021.05.04"]
[WhiteClock "0:00:04"]
[BlackClock "0:00:04"]

1. d4 {[%clk 0:03:00]}  Nc6 {[%clk 0:02:59]} 2. c4 {[%clk 0:03:00]}  e5 {[%clk 0:02:59]} 3. d5 {[%clk 0:03:01]}  Nce7 {[%clk 0:02:58]} 4. Nc3 {[%clk 0:03:01]}  Ng6 {[%clk 0:02:58]} 5. Nf3 {[%clk 0:03:02]}  Bc5 {[%clk 0:02:58]} 6. h4 {[%clk 0:02:57]}  d6 {[%clk 0:02:52]} 7. b4 {[%clk 0:02:55]}  Bb6 {[%clk 0:02:50]} 8. Na4 {[%clk 0:02:54]}  e4 {[%clk 0:02:42]} 9. h5 {[%clk 0:02:37]}  exf3 {[%clk 0:01:52]} 10. hxg6 {[%clk 0:02:36]}  fxg6 {[%clk 0:01:46]} 11. exf3 {[%clk 0:02:26]}  Nf6 {[%clk 0:01:43]} 12. Be2 {[%clk 0:01:56]}  O-O {[%clk 0:01:42]} 13. O-O {[%clk 0:01:57]}  Bd7 {[%clk 0:01:40]} 14. Bb2 {[%clk 0:01:47]}  Qe8 {[%clk 0:01:33]} 15. Nxb6 {[%clk 0:01:46]}  axb6 {[%clk 0:01:32]} 16. Re1 {[%clk 0:01:43]}  Qf7 {[%clk 0:01:30]} 17. Bd3 {[%clk 0:01:36]}  Nh5 {[%clk 0:01:28]} 18. Qd2 {[%clk 0:01:03]}  Nf4 {[%clk 0:01:22]} 19. Bf1 {[%clk 0:01:04]}  Qf5 {[%clk 0:01:04]} 20. Qd4 {[%clk 0:01:00]}  Rf7 {[%clk 0:00:58]} 21. Re3 {[%clk 0:00:52]}  Qg5 {[%clk 0:00:55]} 22. g3 {[%clk 0:00:50]}  Nh5 {[%clk 0:00:49]} 23. Bg2 {[%clk 0:00:40]}  Raf8 {[%clk 0:00:43]} 24. f4 {[%clk 0:00:38]}  Qh6 {[%clk 0:00:28]} 25. Re6 {[%clk 0:00:22]}  Nxf4 {[%clk 0:00:19]} 26. gxf4 {[%clk 0:00:15]}  Bxe6 {[%clk 0:00:15]} 27. dxe6 {[%clk 0:00:11]}  Rxf4 {[%clk 0:00:15]} 28. Qe3 {[%clk 0:00:11]}  Rxf2 {[%clk 0:00:12]} 29. Qxh6 {[%clk 0:00:11]}  gxh6 {[%clk 0:00:12]} 30. e7 {[%clk 0:00:11]}  Rxb2 {[%clk 0:00:11]} 31. exf8=Q+ {[%clk 0:00:11]}  Kxf8 {[%clk 0:00:11]} 32. b5 {[%clk 0:00:11]}  Re2 {[%clk 0:00:06]} 33. Bxb7 {[%clk 0:00:10]}  h5 {[%clk 0:00:07]} 34. a4 {[%clk 0:00:10]}  h4 {[%clk 0:00:06]} 35. Rf1+ {[%clk 0:00:07]}  Kg7 {[%clk 0:00:06]} 36. Bd5 {[%clk 0:00:08]}  Re7 {[%clk 0:00:06]} 37. Ra1 {[%clk 0:00:07]}  g5 {[%clk 0:00:06]} 38. a5 {[%clk 0:00:08]}  bxa5 {[%clk 0:00:06]} 39. Rxa5 {[%clk 0:00:09]}  h5 {[%clk 0:00:07]} 40. Ra7 {[%clk 0:00:09]}  Kf6 {[%clk 0:00:06]} 41. Ra8 {[%clk 0:00:09]}  g4 {[%clk 0:00:06]} 42. Kg2 {[%clk 0:00:09]}  h3+ {[%clk 0:00:06]} 43. Kg3 {[%clk 0:00:09]}  Re3+ {[%clk 0:00:06]} 44. Kf2 {[%clk 0:00:07]}  Rc3 {[%clk 0:00:05]} 45. Rh8 {[%clk 0:00:08]}  g3+ {[%clk 0:00:05]} 46. Ke2 {[%clk 0:00:06]}  Kg5 {[%clk 0:00:06]} 47. Rg8+ {[%clk 0:00:05]}  Kh4 {[%clk 0:00:06]} 48. Kd2 {[%clk 0:00:05]}  Ra3 {[%clk 0:00:05]} 49. Re8 {[%clk 0:00:03]}  h2 {[%clk 0:00:05]} 50. Re4+ {[%clk 0:00:04]}  Kg5 {[%clk 0:00:05]} 51. Re8 {[%clk 0:00:04]}  Ra2+ {[%clk 0:00:05]} 52. Ke3 {[%clk 0:00:04]}  g2 {[%clk 0:00:05]} 53. Rg8+ {[%clk 0:00:04]}  Kh4 {[%clk 0:00:06]} 54. Rxg2 {[%clk 0:00:03]}  h1=Q {[%clk 0:00:04]} 55. Rxa2 {[%clk 0:00:04]}  Qe1+ {[%clk 0:00:03]} 56. Re2 {[%clk 0:00:03]}  Qd1 {[%clk 0:00:04]} 57. Rh2+ {[%clk 0:00:03]}  Kg3 {[%clk 0:00:03]} 58. Rg2+ {[%clk 0:00:04]}  Kh4 {[%clk 0:00:04]} 59. Rh2+ {[%clk 0:00:04]}  Kg5 {[%clk 0:00:04]} 60. Rg2+ {[%clk 0:00:05]}  Kh6 {[%clk 0:00:05]} 61. Rd2 {[%clk 0:00:05]}  Qc1 {[%clk 0:00:05]} 62. Kd3 {[%clk 0:00:05]}  Qf1+ {[%clk 0:00:05]} 63. Re2 {[%clk 0:00:05]}  h4 {[%clk 0:00:05]} 64. Kd2 {[%clk 0:00:05]}  Qf4+ {[%clk 0:00:05]} 65. Kd3 {[%clk 0:00:05]}  h3 {[%clk 0:00:05]} 66. Re6+ {[%clk 0:00:05]}  Kg5 {[%clk 0:00:05]} 67. Re7 {[%clk 0:00:05]}  h2 {[%clk 0:00:05]} 68. Rxc7 {[%clk 0:00:02]}  Qf5+ {[%clk 0:00:04]} 69. Kd4 {[%clk 0:00:02]}  Qxd5+ {[%clk 0:00:04]} 70. Kxd5 {[%clk 0:00:03]}  h1=Q+ {[%clk 0:00:05]} 71. Kxd6 {[%clk 0:00:04]}  Qh2+ {[%clk 0:00:05]} 72. Kc6 {[%clk 0:00:04]}  Qg2+ {[%clk 0:00:05]} 73. Kb6 {[%clk 0:00:05]}  Qf2+ {[%clk 0:00:04]} 74. Kb7 {[%clk 0:00:05]}  Kf6 {[%clk 0:00:05]} 75. b6 {[%clk 0:00:05]}  Ke6 {[%clk 0:00:04]} 76. c5 {[%clk 0:00:06]}  Qf3+ {[%clk 0:00:04]} 77. Kb8 {[%clk 0:00:06]}  Qf8+ {[%clk 0:00:03]} 78. Rc8 {[%clk 0:00:06]}  Qf4+ {[%clk 0:00:03]} 79. Kb7 {[%clk 0:00:06]}  Kd5 {[%clk 0:00:03]} 80. c6 {[%clk 0:00:06]}  Qf7+ {[%clk 0:00:03]} 81. c7 {[%clk 0:00:06]}  Kc5 {[%clk 0:00:04]} 82. Rd8 {[%clk 0:00:05]}  Qf3+ {[%clk 0:00:04]} 83. Kb8 {[%clk 0:00:05]}  Qf4 {[%clk 0:00:04]} 84. b7 {[%clk 0:00:04]}  Kc6 {[%clk 0:00:03]} 85. Rc8 {[%clk 0:00:04]}  Kb6 {[%clk 0:00:03]} 86. Ka8 {[%clk 0:00:03]}  Qa4+ {[%clk 0:00:03]} 87. Kb8 {[%clk 0:00:04]}  Qa7# {[%clk 0:00:04]} 0-1


[Site "https://www.chess.com"]